fUSD/lending_fUSD_20250117
["ID","MTS","AMOUNT","RATE_DAILY","PERIOD"]
[349385112,1737145833128,-500.0,0.00021917,2]
[349385113,1737145833138,-500.0,0.00021917,2]
[349385114,1737145833148,-500.0,0.00021917,2]
[349385115,1737145833158,-500.0,0.00021917,2]
[349385116,1737145833168,-500.0,0.00021917,2]
[349385117,1737145833178,-500.0,0.00021917,2]
[349385118,1737145833189,-500.0,0.00021917,2]
[349385119,1737145833199,-263.42211033,0.00021917,2]
[349385120,1737145833209,-613.9,0.00021917,2]
[349385121,1737145833218,-613.9,0.00021917,2]
[349385122,1737145833228,-613.9,0.00021917,2]
[349385123,1737145833239,-613.9,0.00021917,2]
[349385124,1737145833250,-613.9,0.00021917,2]
[349385125,1737145833261,-613.9,0.00021917,2]
[349385126,1737145833272,-613.9,0.00021917,2]
[349385127,1737145833282,-500.0,0.00021917,2]
[349385128,1737145833292,-500.0,0.00021917,2]
[349385129,1737145833302,-500.0,0.00021917,2]
[349385130,1737145833312,-500.0,0.00021917,2]
[349385131,1737145833322,-150.0,0.00021918,2]
[349385132,1737145833332,-500.0,0.00021959,2]
[349385133,1737145833342,-500.0,0.00021959,2]
[349385134,1737145833352,-640.36,0.00021959,2]
[349385135,1737145833362,-268.0,0.00022,2]
[349385136,1737145833372,-155.0,0.00022,2]
[349385137,1737145833382,-500.0,0.00022,2]
[349385138,1737145833392,-250.0,0.00022019,2]
[349385139,1737145833402,-4913.69448988,0.0002219,2]
[349385140,1737145833428,-152.03,0.00018573,2]
[349385141,1737145833438,-163.40123052,0.0002219,2]
[349385142,1737145833451,-2161.71561134,0.0002219,2]
[349385143,1737145833464,-3167.62579518,0.0002219,2]
[349385144,1737145833475,-387.2089524,0.0002219,2]
[349385145,1737145835783,-152.03,0.00018579,2]
[349385146,1737145835793,-152.03,0.00018584,2]
[349385147,1737145835803,-152.03,0.0001859,2]
[349385148,1737145835813,-152.03,0.00018596,2]
[349385149,1737145835822,-152.03,0.00018602,2]
[349385150,1737145835832,-152.03,0.00018608,2]
[349385151,1737145835842,-152.03,0.00018613,2]
[349385152,1737145835851,-152.03,0.00018619,2]
[349385153,1737145835861,-152.03,0.00018625,2]
[349385154,1737145835871,-152.03,0.00018631,2]
[349385155,1737145835880,-152.03,0.00018637,2]
[349385156,1737145835890,-3.85589373,0.00018642,2]
[349385157,1737145835902,-148.17410627,0.00018642,2]
[349385158,1737145835912,-152.03,0.00018648,2]
[349385159,1737145835923,-152.03,0.00018654,2]
[349385160,1737145835933,-152.03,0.0001866,2]
[349385161,1737145835943,-1599.79392068,0.0002219,2]
[349385162,1737145835952,-184.6,0.00022227,2]
[349385163,1737145835962,-150.0,0.00022495,2]
[349385164,1737145835972,-171.38,0.0002251,2]
[349385165,1737145835982,-1000.0,0.00022672,2]
[349385166,1737145835992,-500.0,0.0002275,2]
[349385167,1737145836003,-500.0,0.0002275,2]
[349385168,1737145836013,-429.81243014,0.00022867,2]
[349385170,1737145836023,-2500.0,0.00022899,2]
[349385172,1737145836033,-5000.0,0.00022899,2]
[349385173,1737145836043,-1133.49655426,0.00022899,2]
[349385174,1737145836053,-153.44742962,0.000229,2]
[349385175,1737145836063,-3000.0,0.0002297,2]
[349385176,1737145836073,-500.0,0.00022973,2]
[349385178,1737145836082,-500.0,0.00022998,2]
[349385179,1737145836092,-536.77,0.00022998,2]
[349385180,1737145836103,-500.0,0.00022998,2]
[349385181,1737145836112,-500.0,0.00022998,2]
[349385182,1737145836121,-500.0,0.00022998,2]
[349385183,1737145836131,-500.0,0.00022998,2]
[349385185,1737145836141,-500.0,0.00022998,2]
[349385187,1737145836151,-625.04,0.00022998,2]
[349385189,1737145836162,-500.0,0.00022998,2]
[349385192,1737145836172,-500.0,0.00022998,2]
[349385194,1737145836182,-500.18,0.00022998,2]
[349385196,1737145836190,-500.0,0.00022998,2]
[349385198,1737145836200,-500.0,0.00022998,2]
[349385200,1737145836209,-545.0,0.00022998,2]
[349385202,1737145836219,-500.0,0.00022998,2]
[349385204,1737145836229,-500.0,0.00022998,2]
[349385206,1737145836238,-500.0,0.00022998,2]
[349385208,1737145836247,-500.0,0.00022998,2]
[349385210,1737145836257,-500.0,0.00022998,2]
[349385212,1737145836266,-500.0,0.00022998,2]
[349385214,1737145836275,-500.0,0.00022998,2]
[349385216,1737145836284,-500.0,0.00022998,2]
[349385218,1737145836294,-500.0,0.00022998,2]
[349385220,1737145836303,-500.0,0.00022998,2]
[349385222,1737145836312,-500.0,0.00022998,2]
[349385223,1737145836322,-500.0,0.00022998,2]
[349385226,1737145836331,-500.0,0.00022998,2]
[349385228,1737145836342,-500.0,0.00022998,2]
[349385230,1737145836351,-613.9,0.00022998,2]
[349385232,1737145836360,-500.0,0.00022998,2]
[349385234,1737145836370,-19958.76242783,0.00022999,2]
[349385236,1737145836386,-5856.97893899,0.00022999,2]
[349385244,1737145836450,-1065.31133418,0.00022999,2]
[349385247,1737145836462,-5901.12896154,0.00022999,2]
[349385261,1737145836595,-16684.80381139,0.00022999,2]
[349385263,1737145836608,-1923.06591622,0.00022999,2]
[349385408,1737145837952,-901.87,0.00022999,2]
[349385410,1737145837965,-4953.5004984,0.00022999,2]
[349385416,1737145838011,-1587.06164715,0.00022999,2]
[349385422,1737145838072,-10343.37916495,0.00022999,2]
[349385424,1737145838085,-7564.10882,0.00022999,2]
[349385435,1737145838195,-164255.0762409,0.00022999,2]
[349385454,1737145838393,-23949.33613845,0.00022999,2]
[349385456,1737145838404,-160.57199393,0.00022999,2]
[349385458,1737145838414,-155.8674,0.00023,2]
[349385460,1737145838424,-268.0,0.00023,2]
[349385462,1737145838433,-2110.0,0.00023,2]
[349385464,1737145838443,-155.0,0.00023014,2]
[349385466,1737145838453,-701.64453881,0.00023024,2]
[349385468,1737145838462,-701.64453881,0.0002304,2]
[349385470,1737145838471,-701.64453881,0.00023062,2]
[349385472,1737145838481,-150.0,0.00023071,2]
[349385474,1737145838491,-300.0,0.00023082,2]
[349385476,1737145838500,-701.64453881,0.00023086,2]
[349385478,1737145838510,-701.64453881,0.00023095,2]
[349385480,1737145838519,-180.3443,0.00023099,2]
[349385482,1737145838529,-33589.3054029,0.00023099,2]
[349385621,1737145839993,-500.0,0.00021917,2]
[349385623,1737145840004,-500.0,0.00022998,2]
[349385625,1737145840013,-2541.4752971,0.00023099,2]
[349385627,1737145840023,-1192.7269,0.00023099,2]
[349385629,1737145840033,-1457.0451,0.00023099,2]
[349385631,1737145840043,-1717.23079302,0.00023099,2]
[349385705,1737145840781,-5674.67500698,0.00023099,2]
[349385707,1737145840794,-500.0,0.00023099,2]
[349385710,1737145840805,-500.0,0.00023099,2]
[349385712,1737145840816,-500.0,0.00023099,2]
[349385714,1737145840833,-500.0,0.00023099,2]
[349385716,1737145840844,-500.0,0.00023099,2]
[349385718,1737145840856,-500.0,0.00023099,2]
[349385721,1737145840870,-500.0,0.00023099,2]
[349385723,1737145840882,-500.0,0.00023099,2]
[349385726,1737145840894,-500.0,0.00023099,2]
[349385728,1737145840905,-500.0,0.00023099,2]
[349385730,1737145840917,-625.04,0.00023099,2]
[349385732,1737145840927,-500.0,0.00023099,2]
[349385734,1737145840937,-500.0,0.00023099,2]
[349385736,1737145840947,-500.0,0.00023099,2]
[349385738,1737145840957,-500.0,0.00023099,2]
[349385740,1737145840967,-500.18,0.00023099,2]
[349385742,1737145840978,-749.46,0.00023099,2]
[349385744,1737145840990,-1052.83,0.00023099,2]
[349385746,1737145841003,-500.0,0.00023099,2]
[349385748,1737145841013,-500.0,0.00023099,2]
[349385749,1737145841023,-500.0,0.00023099,2]
[349385751,1737145841033,-489.58,0.00023099,2]
[349385753,1737145841043,-500.0,0.00023099,2]
[349385755,1737145841052,-38.70531421,0.00023099,2]
[349385758,1737145841072,-461.29468579,0.00023099,2]
[349385759,1737145841083,-500.0,0.00023099,2]
[349385761,1737145841094,-500.0,0.00023099,2]
[349385763,1737145841105,-500.0,0.00023099,2]
[349385765,1737145841118,-137.25031421,0.00023099,2]
[349385767,1737145841131,-362.74968579,0.00023099,2]
[349385769,1737145841141,-322.65031421,0.00023099,2]
[349385775,1737145841201,-177.34968579,0.00023099,2]
[349385777,1737145841212,-590.25,0.00023099,2]
[349385779,1737145841222,-140.65435843,0.00023099,2]
[349385790,1737145841340,-359.34564157,0.00023099,2]
[349385792,1737145841351,-500.0,0.00023099,2]
[349385794,1737145841362,-294.48356747,0.00023099,2]
[349385964,1737145842990,-205.51643253,0.00023099,2]
[349385969,1737145843001,-613.9,0.00023099,2]
[349385974,1737145843012,-500.0,0.00023099,2]
[349385978,1737145843022,-6145.7491,0.000231,2]
[349385982,1737145843033,-6402.83446741,0.000231,2]
[349385989,1737145843067,-32.43480522,0.000231,2]
[349385993,1737145843082,-60665.60360987,0.000231,2]
[349385997,1737145843096,-2033.6999997,0.000231,2]
[349386000,1737145843111,-31380.3191178,0.000231,2]
[349386003,1737145843122,-500.0,0.000231,2]
[349386007,1737145843134,-465.58841857,0.000231,2]
[349386011,1737145843144,-701.64453881,0.00023154,2]
[349386014,1737145843156,-701.64453881,0.00023156,2]
[349386016,1737145843167,-701.64453881,0.00023171,2]
[349386019,1737145843180,-500.0,0.00023173,2]
[349386022,1737145843191,-330.0,0.00023178,2]
[349386025,1737145843201,-34840.08926414,0.0002318,2]
[349386032,1737145843222,-593.9952358,0.0002318,2]
[349386035,1737145843235,-10520.0,0.0002318,2]
[349386040,1737145843257,-500.0,0.00021917,2]
[349386043,1737145843267,-15817.0032043,0.0002318,2]
[349386048,1737145843284,-35215.57873819,0.0002318,2]
[349386051,1737145843295,-207.18,0.00023189,2]
[349386054,1737145843306,-893.1298796,0.00023195,2]
[349386057,1737145843317,-217.7826244,0.00023195,2]
[349386061,1737145843330,-364.48,0.00023197,2]
[349386065,1737145843341,-500.0,0.00023197,2]
[349386068,1737145843352,-500.0,0.00023198,2]
[349386071,1737145843364,-500.0,0.00023198,2]
[349386074,1737145843380,-168.52921812,0.00023198,2]
[349386077,1737145843393,-611.04,0.00023198,2]
[349386080,1737145843404,-395.77344127,0.00023198,2]
[349386084,1737145843415,-500.0,0.00023198,2]
[349386085,1737145843426,-500.0,0.00023198,2]
[349386087,1737145843437,-500.0,0.00023198,2]
[349386090,1737145843448,-420.04,0.00023198,2]
[349386092,1737145843459,-555.74,0.00023198,2]
[349386094,1737145843470,-500.0,0.00023198,2]
[349386096,1737145843480,-500.0,0.00023198,2]
[349386098,1737145843491,-500.0,0.00023198,2]
[349386100,1737145843502,-500.0,0.00023198,2]
[349386102,1737145843513,-500.0,0.00023198,2]
[349386104,1737145843524,-500.0,0.00023198,2]
[349386107,1737145843535,-500.0,0.00023198,2]
[349386109,1737145843546,-583.43468742,0.00023198,2]
[349386111,1737145843555,-500.0,0.00023198,2]
[349386113,1737145843566,-500.0,0.00023198,2]
[349386114,1737145843578,-613.9,0.00023198,2]
[349386117,1737145843588,-500.0,0.00023198,2]
[349386118,1737145843597,-24957.49590487,0.00023199,2]
[349386120,1737145843607,-1118.20718362,0.00023199,10]
[349386122,1737145843616,-995.9933,0.00023199,2]
[349386124,1737145843626,-500.0,0.00023199,2]
[349386126,1737145843635,-500.0,0.00023199,2]
[349386128,1737145843646,-352.2,0.00023199,2]
[349386130,1737145843657,-500.0,0.00023199,2]
[349386132,1737145843667,-500.0,0.00023199,2]
[349386134,1737145843676,-500.0,0.00023199,2]
[349386159,1737145843902,-500.0,0.00023199,2]
[349386162,1737145843919,-500.0,0.00023199,2]
[349386164,1737145843930,-500.0,0.00023199,2]
[349386166,1737145843939,-271.1861725,0.00023199,2]
[349386168,1737145843948,-508.41,0.00023199,2]
[349386170,1737145843958,-500.0,0.00023199,2]
[349386172,1737145843967,-500.0,0.00023199,2]
[349386174,1737145843978,-500.0,0.00023199,2]
[349386176,1737145843987,-500.0,0.00023199,2]
[349386178,1737145843996,-500.0,0.00023199,2]
[349386180,1737145844006,-422.15074269,0.00023199,2]
[349386182,1737145844016,-545.98,0.00023199,2]
[349386184,1737145844025,-500.0,0.00023199,2]
[349386186,1737145844035,-500.0,0.00023199,2]
[349386188,1737145844044,-500.0,0.00023199,2]
[349386190,1737145844054,-500.0,0.00023199,2]
[349386192,1737145844063,-500.0,0.00023199,2]
[349386194,1737145844077,-500.0,0.00023199,2]
[349386196,1737145844087,-500.0,0.00023199,2]
[349386198,1737145844097,-500.0,0.00023199,2]
[349386200,1737145844108,-500.0,0.00023199,2]
[349386202,1737145844118,-500.0,0.00023199,2]
[349386204,1737145844127,-500.0,0.00023199,2]
[349386206,1737145844136,-500.0,0.00023199,2]
[349386208,1737145844148,-500.0,0.00023199,2]
[349386210,1737145844158,-500.0,0.00023199,2]
[349386212,1737145844168,-500.0,0.00023199,2]
[349386214,1737145844178,-500.0,0.00023199,2]
[349386216,1737145844187,-500.0,0.00023199,2]
[349386218,1737145844197,-500.0,0.00023199,2]
[349386220,1737145844207,-222.14506761,0.00023199,2]
[349386223,1737145844216,-500.0,0.00023199,2]
[349386225,1737145844225,-500.0,0.00023199,2]
[349386227,1737145844235,-500.0,0.00023199,2]
[349386229,1737145844244,-500.0,0.00023199,2]
[349386231,1737145844253,-500.0,0.00023199,2]
[349386232,1737145844263,-500.0,0.00023199,2]
[349386234,1737145844272,-500.0,0.00023199,2]
[349386236,1737145844281,-500.0,0.00023199,2]
[349386238,1737145844290,-164.2939061,0.00023199,2]
[349386240,1737145844300,-558.8,0.00023199,2]
[349386242,1737145844310,-500.0,0.00023199,2]
[349386244,1737145844321,-500.0,0.00023199,2]
[349386246,1737145844331,-500.0,0.00023199,2]
[349386248,1737145844340,-500.0,0.00023199,2]
[349386250,1737145844349,-500.0,0.00023199,2]
[349386252,1737145844359,-500.0,0.00023199,2]
[349386254,1737145844368,-500.0,0.00023199,2]
[349386256,1737145844377,-500.0,0.00023199,2]
[349386258,1737145844386,-500.0,0.00023199,2]
[349386260,1737145844395,-500.0,0.00023199,2]
[349386262,1737145844404,-500.0,0.00023199,2]
[349386263,1737145844413,-500.0,0.00023199,2]
[349386266,1737145844423,-500.0,0.00023199,2]
[349386268,1737145844432,-500.0,0.00023199,2]
[349386270,1737145844442,-500.0,0.00023199,2]
[349386271,1737145844451,-500.0,0.00023199,2]
[349386273,1737145844461,-203.81611702,0.00023199,2]
[349386275,1737145844470,-500.0,0.00023199,2]
[349386277,1737145844480,-500.0,0.00023199,2]
[349386279,1737145844489,-500.0,0.00023199,2]
[349386281,1737145844498,-500.0,0.00023199,2]
[349386283,1737145844508,-500.0,0.00023199,2]
[349386286,1737145844518,-500.0,0.00023199,2]
[349386287,1737145844527,-500.0,0.00023199,2]
[349386289,1737145844537,-501.98650936,0.00023199,2]
[349386291,1737145844546,-500.0,0.00023199,2]
[349386294,1737145844556,-500.0,0.00023199,2]
[349386296,1737145844566,-500.0,0.00023199,2]
[349386298,1737145844577,-195.66378592,0.00023199,2]
[349386300,1737145844586,-749.46,0.00023199,2]
[349386302,1737145844595,-749.46,0.00023199,2]
[349386304,1737145844604,-749.46,0.00023199,2]
[349386306,1737145844614,-749.46,0.00023199,2]
[349386308,1737145844624,-749.46,0.00023199,2]
[349386310,1737145844634,-749.46,0.00023199,2]
[349386312,1737145844643,-749.46,0.00023199,2]
[349386314,1737145844653,-749.46,0.00023199,2]
[349386316,1737145844664,-749.46,0.00023199,2]
[349386318,1737145844674,-749.46,0.00023199,2]
[349386320,1737145844683,-749.46,0.00023199,2]
[349386322,1737145844693,-749.46,0.00023199,2]
[349386324,1737145844702,-749.46,0.00023199,2]
[349386325,1737145844711,-749.46,0.00023199,2]
[349386327,1737145844721,-749.46,0.00023199,2]
[349386330,1737145844731,-749.46,0.00023199,2]
[349386332,1737145844741,-749.46,0.00023199,2]
[349386333,1737145844750,-749.46,0.00023199,2]
[349386336,1737145844760,-749.46,0.00023199,2]
[349386338,1737145844770,-749.46,0.00023199,2]
[349386340,1737145844779,-749.46,0.00023199,2]
[349386341,1737145844789,-749.46,0.00023199,2]
[349386343,1737145844798,-749.53182508,0.00023199,2]
[349386345,1737145844807,-1052.83,0.00023199,2]
[349386347,1737145844817,-1052.83,0.00023199,2]
[349386349,1737145844828,-1052.83,0.00023199,2]
[349386351,1737145844838,-1052.83,0.00023199,2]
[349386353,1737145844847,-1052.83,0.00023199,2]
[349386355,1737145844857,-1052.83,0.00023199,2]
[349386357,1737145844867,-1052.83,0.00023199,2]
[349386359,1737145844876,-1052.83,0.00023199,2]
[349386361,1737145844885,-1052.83,0.00023199,2]
[349386363,1737145844894,-1052.83,0.00023199,2]
[349386365,1737145844904,-1052.83,0.00023199,2]
[349386367,1737145844913,-1052.83,0.00023199,2]
[349386369,1737145844923,-1052.83,0.00023199,2]
[349386371,1737145844934,-1052.83,0.00023199,2]
[349386373,1737145844943,-1052.83,0.00023199,2]
[349386375,1737145844952,-1052.83,0.00023199,2]
[349386377,1737145844962,-1052.83,0.00023199,2]
[349386380,1737145844971,-1052.83,0.00023199,2]
[349386381,1737145844981,-1052.83,0.00023199,2]
[349386383,1737145844990,-1052.83,0.00023199,2]
[349386385,1737145845000,-1052.83,0.00023199,2]
[349386387,1737145845009,-1052.83,0.00023199,2]
[349386389,1737145845021,-1053.01,0.00023199,2]
[349386391,1737145845031,-14122.3392795,0.00023199,2]
[349386393,1737145845040,-500.0,0.00023199,2]
[349386395,1737145845050,-500.0,0.00023199,2]
[349386396,1737145845059,-500.0,0.00023199,2]
[349386398,1737145845071,-571.38869967,0.00023199,2]
[349386400,1737145845080,-420.03952231,0.00023199,2]
[349386402,1737145845089,-500.0,0.00023199,2]
[349386404,1737145845102,-500.0,0.00023199,2]
[349386405,1737145845111,-500.0,0.00023199,2]
[349386407,1737145845120,-500.0,0.00023199,2]
[349386409,1737145845129,-500.0,0.00023199,2]
[349386410,1737145845139,-500.0,0.00023199,2]
[349386411,1737145845149,-500.0,0.00023199,2]
[349386412,1737145845159,-622.19,0.00023199,2]
[349386413,1737145845172,-500.0,0.00023199,2]
[349386414,1737145845182,-500.0,0.00023199,2]
[349386415,1737145845192,-500.0,0.00023199,2]
[349386416,1737145845202,-493.68,0.00023199,2]
[349386417,1737145845211,-500.0,0.00023199,2]
[349386418,1737145845220,-500.0,0.00023199,2]
[349386419,1737145845230,-500.0,0.00023199,2]
[349386420,1737145845239,-415.5,0.00023199,2]
[349386421,1737145845248,-500.0,0.00023199,2]
[349386422,1737145845257,-500.0,0.00023199,2]
[349386423,1737145845267,-404.93502502,0.00023199,2]
[349386424,1737145845276,-500.0,0.00023199,2]
[349386425,1737145845286,-500.0,0.00023199,2]
[349386427,1737145845296,-500.0,0.00023199,2]
[349386429,1737145845305,-500.0,0.00023199,2]
[349386431,1737145845314,-500.0,0.00023199,2]
[349386433,1737145845326,-500.0,0.00023199,2]
[349386435,1737145845340,-500.0,0.00023199,2]
[349386437,1737145845350,-500.0,0.00023199,2]
[349386439,1737145845359,-500.0,0.00023199,2]
[349386441,1737145845368,-500.0,0.00023199,2]
[349386443,1737145845377,-500.0,0.00023199,2]
[349386445,1737145845387,-500.0,0.00023199,2]
[349386447,1737145845396,-500.0,0.00023199,2]
[349386449,1737145845406,-500.0,0.00023199,2]
[349386451,1737145845416,-500.0,0.00023199,2]
[349386453,1737145845426,-500.0,0.00023199,2]
[349386455,1737145845436,-500.0,0.00023199,2]
[349386457,1737145845446,-500.0,0.00023199,2]
[349386459,1737145845456,-300.88,0.00023199,2]
[349386461,1737145845466,-500.0,0.00023199,2]
[349386463,1737145845475,-500.0,0.00023199,2]
[349386465,1737145845484,-500.0,0.00023199,2]
[349386467,1737145845493,-500.0,0.00023199,2]
[349386469,1737145845502,-500.0,0.00023199,2]
[349386471,1737145845512,-500.0,0.00023199,2]
[349386473,1737145845521,-500.0,0.00023199,2]
[349386475,1737145845531,-500.0,0.00023199,2]
[349386477,1737145845540,-500.0,0.00023199,2]
[349386479,1737145845550,-500.0,0.00023199,2]
[349386481,1737145845559,-500.0,0.00023199,2]
[349386483,1737145845569,-500.0,0.00023199,2]
[349386485,1737145845580,-500.0,0.00023199,2]
[349386488,1737145845590,-500.0,0.00023199,2]
[349386490,1737145845599,-500.0,0.00023199,2]
[349386491,1737145845609,-500.0,0.00023199,2]
[349386493,1737145845619,-500.0,0.00023199,2]
[349386495,1737145845628,-500.0,0.00023199,2]
[349386498,1737145845639,-377.06,0.00023199,2]
[349386500,1737145845648,-500.0,0.00023199,2]
[349386502,1737145845658,-500.0,0.00023199,2]
[349386504,1737145845667,-500.0,0.00023199,2]
[349386506,1737145845677,-500.0,0.00023199,2]
[349386508,1737145845686,-500.0,0.00023199,2]
[349386510,1737145845696,-500.0,0.00023199,2]
[349386512,1737145845706,-500.0,0.00023199,2]
[349386514,1737145845715,-500.0,0.00023199,2]
[349386516,1737145845725,-500.0,0.00023199,2]
[349386518,1737145845735,-171.08,0.00023199,2]
[349386520,1737145845745,-500.0,0.00023199,2]
[349386522,1737145845756,-500.0,0.00023199,2]
[349386524,1737145845765,-500.0,0.00023199,2]
[349386525,1737145845775,-500.0,0.00023199,2]
[349386527,1737145845784,-500.0,0.00023199,2]
[349386529,1737145845794,-500.0,0.00023199,2]
[349386531,1737145845804,-500.0,0.00023199,2]
[349386533,1737145845813,-500.0,0.00023199,2]
[349386535,1737145845823,-500.0,0.00023199,2]
[349386537,1737145845833,-500.0,0.00023199,2]
[349386540,1737145845843,-500.0,0.00023199,2]
[349386543,1737145845853,-500.0,0.00023199,2]
[349386544,1737145845863,-373.20318867,0.00023199,2]
[349386546,1737145845872,-500.0,0.00023199,2]
[349386549,1737145845882,-613.9,0.00023199,2]
[349386550,1737145845891,-613.9,0.00023199,2]
[349386554,1737145845902,-613.9,0.00023199,2]
[349386556,1737145845912,-613.9,0.00023199,2]
[349386558,1737145845921,-613.9,0.00023199,2]
[349386559,1737145845930,-500.0,0.00023199,2]
[349386562,1737145845940,-613.9,0.00023199,2]
[349386563,1737145845949,-613.9,0.00023199,2]
[349386565,1737145845959,-613.9,0.00023199,2]
[349386567,1737145845968,-613.9,0.00023199,2]
[349386569,1737145845977,-504.97804674,0.00023199,2]
[349386571,1737145845987,-613.9,0.00023199,2]
[349386573,1737145845996,-613.9,0.00023199,2]
[349386575,1737145846005,-500.0,0.00023199,2]
[349386577,1737145846015,-613.9,0.00023199,2]
[349386579,1737145846026,-520.92,0.00023199,2]
[349386581,1737145846037,-613.9,0.00023199,2]
[349386583,1737145846046,-613.9232016,0.00023199,2]
[349386585,1737145846056,-483.11111617,0.00023199,2]
[349386587,1737145846066,-500.0,0.00023199,2]
[349386590,1737145846081,-500.0,0.00023199,2]
[349386592,1737145846090,-500.0,0.00023199,2]
[349386593,1737145846101,-500.0,0.00023199,2]
[349386595,1737145846110,-500.0,0.00023199,2]
[349386597,1737145846121,-378.20265455,0.00023199,2]
[349386599,1737145846131,-300.0,0.00023199,2]
[349386601,1737145846140,-453010.34857702,0.000232,2]
[349386604,1737145846155,-4834.5089715,0.000232,2]
[349386606,1737145846167,-747.55574587,0.000232,2]
[349386621,1737145846295,-500.0,0.00021917,2]
[349386623,1737145846304,-500.0,0.00021917,2]
[349386625,1737145846314,-9183.559424,0.00021917,2]
[349386627,1737145846325,-500.0,0.00021917,2]
[349386629,1737145846338,-3515.04079677,0.00021917,2]
[349386631,1737145846350,-1952.32150639,0.00021917,2]
[349386633,1737145846362,-2610.0837249,0.00021917,2]
[349386635,1737145846373,-1106.11339594,0.00021917,2]
[349386637,1737145846382,-500.0,0.00021917,2]
[349386639,1737145846392,-500.0,0.00021917,2]
[349386641,1737145846402,-500.0,0.00021917,2]
[349386643,1737145846412,-200.0,0.00022358,2]
[349386645,1737145846422,-500.0,0.00022998,2]
[349386647,1737145846432,-500.0,0.00023099,2]
[349386649,1737145846441,-24662.86017093,0.000232,2]
[349386651,1737145846453,-716.93616505,0.000232,2]
[349386654,1737145846465,-16991.8439912,0.000232,2]
[349386658,1737145846477,-3576.93654066,0.000232,2]
[349386661,1737145846488,-10174.50275888,0.000232,2]
[349386664,1737145846504,-398.45139381,0.00023198,2]
[349386666,1737145846516,-101.54860619,0.00023198,2]
[349386668,1737145846526,-186.53602752,0.000232,2]
[349386670,1737145846537,-4783.00115146,0.000232,2]
[349386714,1737145846946,-1747.41471306,0.000232,2]
[349386717,1737145846957,-527.93311646,0.000232,2]
[349386719,1737145846968,-283.01999996,0.000232,2]
[349386721,1737145846979,-145457.2043,0.000232,2]
[349386723,1737145846990,-89930.51377364,0.000232,2]
[349386725,1737145847001,-904.19286513,0.000232,2]
[349386930,1737146097736,-375.75,0.00010137,2]
[349386931,1737146133814,370.77636601,0.00023,120]
[349386933,1737146634416,500.0,0.00023,120]
[349386934,1737146756889,344.02,0.00023,120]
[349386935,1737146828104,-219.82,0.00016712,2]
[349386936,1737146828124,-1342.75213837,0.00016713,2]
[349386937,1737146828144,-97.67466429,0.00016713,2]
[349386938,1737146839132,-1256.43574784,0.00016713,2]
[349386939,1737146839154,-375.75,0.00016813,2]
[349386940,1737146839174,-205.50434377,0.00019759,2]
[349386941,1737146845143,-193.19724084,0.00019759,2]
[349386945,1737147007774,199.84,0.00010137,2]
[349386946,1737147007976,199.84,0.00016813,2]
[349386966,1737147032174,-324.96841539,0.00019759,2]
[349386967,1737147032183,-319.95131741,0.00021408,2]
[349386968,1737147032193,-250.0,0.00021419,2]
[349386969,1737147032203,-1663.77239982,0.00021433,2]